fUSD/lending_fUSD_20260529
["ID","MTS","AMOUNT","RATE_DAILY","PERIOD"]
[423375335,1780068162000,-1705.04316341,0.0004115,120]
[423375337,1780068162000,-4627.97,0.00041168,120]
[423375336,1780068162000,-1000.0,0.00041151,120]
[423375333,1780068162000,-275.0,0.0004115,120]
[423375334,1780068162000,-750.0,0.0004115,120]
[423375332,1780068162000,-1250.0,0.0004115,120]
[423375324,1780068162000,-1000.0,0.00041114,120]
[423375329,1780068162000,-310.35,0.00041144,120]
[423375330,1780068162000,-290.3986294,0.00041149,31]
[423375328,1780068162000,-300.0,0.0004114,90]
[423375326,1780068162000,-1530.04,0.00041133,120]
[423375325,1780068162000,-1000.0,0.00041132,120]
[423375327,1780068162000,-322.82,0.00041138,120]
[423375331,1780068162000,-3500.0,0.0004115,120]
[423375338,1780068162000,-1000.0,0.00041169,120]
[423375346,1780068162000,-219.32642016,0.00041177,120]
[423375339,1780068162000,-228.411761,0.00041176,57]
[423375355,1780068162000,-252.01073836,0.00041177,120]
[423375354,1780068162000,-165.07806375,0.00041177,120]
[423375340,1780068162000,-300.0,0.00041177,90]
[423375352,1780068162000,-257.48176966,0.00041177,120]
[423375351,1780068162000,-164.58389015,0.00041177,120]
[423375350,1780068162000,-245.04765188,0.00041177,120]
[423375349,1780068162000,-183.86751181,0.00041177,120]
[423375353,1780068162000,-164.23035426,0.00041177,120]
[423375347,1780068162000,-498.70018951,0.00041177,120]
[423375345,1780068162000,-1331.01513864,0.00041177,120]
[423375344,1780068162000,-502.27314874,0.00041177,120]
[423375341,1780068162000,-167.10850837,0.00041177,120]
[423375342,1780068162000,-405.46685995,0.00041177,120]
[423375343,1780068162000,-266.4771556,0.00041177,120]
[423375348,1780068162000,-164.85263737,0.00041177,120]
[423375356,1780068163000,-220.37245697,0.00041178,60]
[423375357,1780068163000,-1000.0,0.00041187,120]
[423375359,1780068163000,-310.35,0.00041194,120]
[423375358,1780068163000,-322.82,0.00041188,120]
[423375360,1780068163000,-2000.0,0.000412,120]
[423375361,1780068163000,-1000.0,0.000412,30]
[423375362,1780068163000,-137263.0,0.000412,30]
[423375363,1780068163000,-1000.0,0.00041205,120]
[423375365,1780068163000,-1000.0,0.00041224,120]
[423375367,1780068163000,-1920.81300557,0.00041232,120]
[423375366,1780068163000,-280.03725111,0.00041231,30]
[423375368,1780068163000,-322.82,0.00041238,120]
[423375369,1780068163000,-2000.0,0.0004124,120]
[423375370,1780068163000,-1000.0,0.00041242,120]
[423375372,1780068163000,-300.0,0.00041249,90]
[423375371,1780068163000,-310.35,0.00041244,120]
[423375373,1780068163000,-500.0,0.0004125,120]
[423375374,1780068163000,-1000.0,0.0004126,120]
[423375364,1780068163000,-300.0,0.00041213,90]
[423375384,1780068164000,-150.0,0.00041319,120]
[423375385,1780068164000,-300.0,0.00041319,91]
[423375383,1780068164000,-1000.0,0.00041315,120]
[423375381,1780068164000,-243.0,0.000413,120]
[423375382,1780068164000,-2500.0,0.00041315,120]
[423375376,1780068164000,-1000.0,0.00041279,120]
[423375378,1780068164000,-322.82,0.00041288,120]
[423375379,1780068164000,-310.35,0.00041294,120]
[423375377,1780068164000,-300.0,0.00041285,91]
[423375375,1780068164000,-418.01477293,0.00041266,120]
[423375380,1780068164000,-1000.0,0.00041297,120]
[423375386,1780068164000,-9928.921,0.00041331,120]
[423375387,1780068164000,-1000.0,0.00041333,120]
[423375390,1780068164000,-500.0,0.00041336,120]
[423375388,1780068164000,-500.0,0.00041336,120]
[423375399,1780068164000,-674.0,0.00041363,120]
[423375398,1780068164000,-300.0,0.00041354,91]
[423375397,1780068164000,-1000.0,0.00041352,120]
[423375395,1780068164000,-322.82,0.00041338,120]
[423375396,1780068164000,-310.35,0.00041344,120]
[423375393,1780068164000,-500.0,0.00041336,120]
[423375391,1780068164000,-500.0,0.00041336,120]
[423375392,1780068164000,-500.0,0.00041336,120]
[423375389,1780068164000,-500.0,0.00041336,120]
[423375394,1780068164000,-270.0455652,0.00041336,60]
[423375408,1780068165000,-1124.0,0.00041371,120]
[423375409,1780068165000,-938.0,0.00041371,120]
[423375410,1780068165000,-3004.0,0.00041371,120]
[423375407,1780068165000,-2666.0,0.00041371,120]
[423375406,1780068165000,-1000.0,0.0004137,120]
[423375400,1780068165000,-841.0,0.00041363,120]
[423375404,1780068165000,-260.4103811,0.00041368,40]
[423375403,1780068165000,-150.0,0.00041367,120]
[423375401,1780068165000,-156.0,0.00041363,120]
[423375402,1780068165000,-2820.0,0.00041363,120]
[423375411,1780068165000,-810.0,0.00041371,120]
[423375405,1780068165000,-500.0,0.00041369,40]
[423375413,1780068165000,-5349.0,0.00041371,120]
[423375414,1780068165000,-2183.0,0.00041371,120]
[423375423,1780068165000,-153.0,0.000414,120]
[423375415,1780068165000,-338.34022495,0.00041376,30]
[423375416,1780068165000,-158.26229879,0.00041376,30]
[423375417,1780068165000,-2000.0,0.00041384,120]
[423375418,1780068165000,-300.0,0.00041387,91]
[423375419,1780068165000,-322.82,0.00041388,120]
[423375420,1780068165000,-1000.0,0.00041388,120]
[423375421,1780068165000,-310.35,0.00041394,120]
[423375422,1780068165000,-251.11897888,0.00041399,56]
[423375424,1780068165000,-1000.0,0.000414,120]
[423375412,1780068165000,-803.0,0.00041371,120]
[423375426,1780068165000,-1000.0,0.00041406,120]
[423375425,1780068165000,-463.023332,0.000414,56]
[423375434,1780068166000,-405.46685995,0.00041451,120]
[423375432,1780068166000,-3278.51348928,0.0004145,120]
[423375430,1780068166000,-1000.0,0.00041443,120]
[423375435,1780068166000,-266.4771556,0.00041451,120]
[423375428,1780068166000,-1000.0,0.00041425,120]
[423375429,1780068166000,-322.82,0.00041438,120]
[423375427,1780068166000,-300.0,0.00041421,91]
[423375431,1780068166000,-310.35,0.00041444,120]
[423375437,1780068166000,-1331.01513864,0.00041451,120]
[423375433,1780068166000,-167.10850837,0.00041451,120]
[423375436,1780068166000,-502.27314874,0.00041451,120]
[423375438,1780068166000,-219.32642016,0.00041451,120]
[423375444,1780068166000,-164.23035426,0.00041451,120]
[423375446,1780068166000,-252.01073836,0.00041451,120]
[423375445,1780068166000,-165.07806375,0.00041451,120]
[423375447,1780068166000,-300.0,0.00041453,91]
[423375443,1780068166000,-257.48176966,0.00041451,120]
[423375442,1780068166000,-164.58389015,0.00041451,120]
[423375440,1780068166000,-183.86751181,0.00041451,120]
[423375439,1780068166000,-498.70018951,0.00041451,120]
[423375441,1780068166000,-245.04765188,0.00041451,120]
[423375455,1780068167000,-1000.0,0.00041498,120]
[423375448,1780068167000,-1000.0,0.00041461,120]
[423375449,1780068167000,-150.0,0.00041469,120]
[423375451,1780068167000,-300.0,0.00041486,91]
[423375453,1780068167000,-322.82,0.00041488,120]
[423375452,1780068167000,-343.07824705,0.00041487,30]
[423375454,1780068167000,-310.35,0.00041494,120]
[423375456,1780068167000,-1000.0,0.00041499,120]
[423375457,1780068167000,-233.5188934,0.00041499,31]
[423375450,1780068167000,-1000.0,0.00041479,120]
[423375460,1780068167000,-1637.996,0.000415,120]
[423375459,1780068167000,-1637.996,0.000415,120]
[423375462,1780068167000,-961.6616,0.000415,30]
[423375461,1780068167000,-1637.99,0.000415,120]
[423375463,1780068167000,-3058.52,0.000415,60]
[423375464,1780068167000,-3058.52,0.000415,60]
[423375466,1780068167000,-1254.88010025,0.000415,120]
[423375465,1780068167000,-3058.52,0.000415,60]
[423375467,1780068167000,-2123.343,0.000415,60]
[423375458,1780068167000,-242.15909246,0.00041499,120]
[423375468,1780068168000,-2123.343,0.000415,60]
[423375469,1780068168000,-2123.34,0.000415,60]
[423375471,1780068168000,-2219.052,0.000415,120]
[423375470,1780068168000,-1536.7063,0.000415,120]
[423375472,1780068168000,-2219.052,0.000415,120]
[423375474,1780068168000,-363.0122,0.000415,60]
[423375473,1780068168000,-2219.05,0.000415,120]
[423375475,1780068168000,-2400.0,0.000415,120]
[423375477,1780068168000,-5961.27892538,0.000415,120]
[423375479,1780068168000,-5000.0,0.000415,120]
[423375480,1780068168000,-1000000.0,0.000415,120]
[423375478,1780068168000,-3000.0,0.000415,120]
[423375481,1780068168000,-29221.9625247,0.000415,120]
[423375476,1780068168000,-1000.0,0.000415,120]
[423375482,1780068202000,-302.764,0.000103,2]
[423375483,1780068203000,-1643.51913838,0.00015,30]
[423375489,1780068203000,-312.02,0.00026486,30]
[423375488,1780068203000,-312.02,0.000258,30]
[423375485,1780068203000,-693.37,0.00025115,30]
[423375491,1780068203000,-5294.77385717,0.00028,60]
[423375486,1780068203000,-312.02,0.00025115,30]
[423375484,1780068203000,-539.35831429,0.00015,30]
[423375487,1780068203000,-328.12,0.00025115,30]
[423375490,1780068203000,-2393.57376006,0.00028,30]
[423375495,1780068203000,-1966.79,0.00028972,30]
[423375493,1780068203000,-444.2510982,0.00028297,120]
[423375492,1780068203000,-3137.0,0.00028082,120]
[423375502,1780068203000,-951.82,0.00029068,30]
[423375501,1780068203000,-951.73,0.00029068,30]
[423375500,1780068203000,-951.73,0.00029068,30]
[423375499,1780068203000,-951.73,0.00029068,30]
[423375496,1780068203000,-1966.79,0.00028986,30]
[423375497,1780068203000,-2285.6951678,0.00029,120]
[423375498,1780068203000,-1966.81,0.00029,30]
[423375494,1780068203000,-1966.79,0.00028959,30]
[423375514,1780068204000,-218.75,0.00029326,30]
[423375513,1780068204000,-218.75,0.00029326,30]
[423375510,1780068204000,-218.75,0.00029326,30]
[423375511,1780068204000,-218.75,0.00029326,30]
[423375507,1780068204000,-494.53,0.00029086,30]
[423375508,1780068204000,-494.53,0.00029086,30]
[423375516,1780068204000,-719.85,0.00029411,30]
[423375506,1780068204000,-494.53,0.00029086,30]
[423375504,1780068204000,-587.29,0.00029082,30]
[423375505,1780068204000,-587.29,0.00029082,30]
[423375503,1780068204000,-587.29,0.00029082,30]
[423375509,1780068204000,-2203.89,0.00029296,30]
[423375517,1780068204000,-719.85,0.00029411,30]
[423375512,1780068204000,-218.75,0.00029326,30]
[423375519,1780068204000,-719.91,0.00029411,30]
[423375530,1780068204000,-650.7916003,0.0003,120]
[423375515,1780068204000,-218.75,0.00029326,30]
[423375527,1780068204000,-342.09068401,0.0003,120]
[423375528,1780068204000,-4449.37390831,0.0003,120]
[423375526,1780068204000,-208.01,0.00029481,30]
[423375525,1780068204000,-208.01,0.00029481,30]
[423375529,1780068204000,-516.23044344,0.0003,30]
[423375523,1780068204000,-208.01,0.00029481,30]
[423375521,1780068204000,-208.01,0.00029481,30]
[423375522,1780068204000,-208.01,0.00029481,30]
[423375520,1780068204000,-1433.91,0.00029433,30]
[423375518,1780068204000,-719.85,0.00029411,30]
[423375524,1780068204000,-208.01,0.00029481,30]
[423375541,1780068205000,-3996.42206129,0.0003013,120]
[423375539,1780068205000,-1024.10465684,0.0003,38]
[423375537,1780068205000,-825.02878041,0.0003,120]
[423375538,1780068205000,-317.8981638,0.0003,120]
[423375534,1780068205000,-170.31631977,0.0003,120]
[423375533,1780068205000,-526.76267861,0.0003,30]
[423375532,1780068205000,-2045.37873131,0.0003,120]
[423375531,1780068205000,-166.0,0.0003,120]
[423375540,1780068205000,-1734.22715031,0.0003013,30]
[423375535,1780068205000,-168.23998241,0.0003,120]
[423375542,1780068205000,-307.26231511,0.0003013,120]
[423375536,1780068205000,-1030.64297803,0.0003,120]
[423375544,1780068205000,-347.02770364,0.00030135,120]
[423375554,1780068205000,-1886.50574178,0.00032877,120]
[423375552,1780068205000,-1312.66445638,0.00032,30]
[423375553,1780068205000,-405.70641793,0.0003287,120]
[423375551,1780068205000,-162.08,0.00032,120]
[423375549,1780068205000,-150.0,0.00031843,30]
[423375543,1780068205000,-300.0,0.0003013,30]
[423375550,1780068205000,-178.087383,0.00032,120]
[423375548,1780068205000,-283.61792291,0.00031,120]
[423375546,1780068205000,-207.93001677,0.000302,120]
[423375547,1780068205000,-3134.77144865,0.000307,120]
[423375545,1780068205000,-187.95218471,0.00030137,120]
[423375555,1780068205000,-325.44992038,0.000329,120]
[423375569,1780068206000,-800.0,0.00035403,120]
[423375566,1780068206000,-800.0,0.00035403,120]
[423375567,1780068206000,-800.0,0.00035403,120]
[423375565,1780068206000,-800.0,0.00035403,120]
[423375563,1780068206000,-819.5611664,0.00035403,120]
[423375564,1780068206000,-800.0,0.00035403,120]
[423375560,1780068206000,-482.0216368,0.00035403,120]
[423375561,1780068206000,-500.0,0.00035403,120]
[423375559,1780068206000,-500.0,0.00035403,120]
[423375558,1780068206000,-381.03042406,0.00035,30]
[423375568,1780068206000,-800.0,0.00035403,120]
[423375556,1780068206000,-872.25866182,0.000329,120]
[423375562,1780068206000,-500.0,0.00035403,120]
[423375557,1780068206000,-154.35513482,0.000329,120]
[423375571,1780068206000,-800.0,0.00035403,120]
[423375572,1780068206000,-800.0,0.00035403,120]
[423375570,1780068206000,-800.0,0.00035403,120]
[423375586,1780068206000,-800.0,0.00035403,120]
[423375584,1780068206000,-800.0,0.00035403,120]
[423375582,1780068206000,-800.0,0.00035403,120]
[423375583,1780068206000,-800.0,0.00035403,120]
[423375581,1780068206000,-800.0,0.00035403,120]
[423375579,1780068206000,-800.0,0.00035403,120]
[423375585,1780068206000,-800.0,0.00035403,120]
[423375578,1780068206000,-800.0,0.00035403,120]
[423375576,1780068206000,-800.0,0.00035403,120]
[423375577,1780068206000,-800.0,0.00035403,120]
[423375575,1780068206000,-800.0,0.00035403,120]
[423375573,1780068206000,-800.0,0.00035403,120]
[423375574,1780068206000,-800.0,0.00035403,120]
[423375580,1780068206000,-800.0,0.00035403,120]
[423375599,1780068207000,-329.83026429,0.000373,120]
[423375598,1780068207000,-493.36226927,0.000373,120]
[423375596,1780068207000,-309.41557562,0.000373,120]
[423375595,1780068207000,-150.0,0.00037125,120]
[423375594,1780068207000,-150.0,0.00037125,120]
[423375592,1780068207000,-1424.4144458,0.00035403,120]
[423375591,1780068207000,-800.0,0.00035403,120]
[423375589,1780068207000,-800.0,0.00035403,120]
[423375590,1780068207000,-800.0,0.00035403,120]
[423375588,1780068207000,-800.0,0.00035403,120]
[423375587,1780068207000,-800.0,0.00035403,120]
[423375600,1780068207000,-308.95842582,0.000373,120]
[423375593,1780068207000,-4884.2,0.00036153,30]
[423375601,1780068207000,-591.70789747,0.000373,120]
[423375597,1780068207000,-170.10856061,0.000373,120]
[423375602,1780068207000,-465.39204499,0.000373,120]
[423375603,1780068207000,-1644.98176118,0.000373,120]
[423375614,1780068207000,-800.0,0.00037373,120]
[423375613,1780068207000,-800.0,0.00037373,120]
[423375612,1780068207000,-800.0,0.00037373,120]
[423375611,1780068207000,-800.0,0.00037373,120]
[423375610,1780068207000,-482.0216368,0.00037373,120]
[423375615,1780068207000,-800.0,0.00037373,120]
[423375609,1780068207000,-819.5611663,0.00037373,120]
[423375607,1780068207000,-500.0,0.00037373,120]
[423375605,1780068207000,-1790.23767762,0.000373,120]
[423375616,1780068207000,-800.0,0.00037373,120]
[423375606,1780068207000,-500.0,0.00037373,120]
[423375604,1780068207000,-1607.98655823,0.000373,120]
[423375608,1780068207000,-500.0,0.00037373,120]
[423375625,1780068208000,-800.0,0.00037373,120]
[423375624,1780068208000,-800.0,0.00037373,120]
[423375622,1780068208000,-800.0,0.00037373,120]
[423375623,1780068208000,-800.0,0.00037373,120]
[423375617,1780068208000,-800.0,0.00037373,120]
[423375620,1780068208000,-800.0,0.00037373,120]
[423375619,1780068208000,-800.0,0.00037373,120]
[423375618,1780068208000,-800.0,0.00037373,120]
[423375626,1780068208000,-800.0,0.00037373,120]
[423375621,1780068208000,-800.0,0.00037373,120]
[423375627,1780068208000,-800.0,0.00037373,120]
[423375628,1780068208000,-800.0,0.00037373,120]
[423375629,1780068208000,-800.0,0.00037373,120]
[423375631,1780068208000,-800.0,0.00037373,120]
[423375630,1780068208000,-800.0,0.00037373,120]
[423375634,1780068208000,-800.0,0.00037373,120]
[423375632,1780068208000,-800.0,0.00037373,120]
[423375633,1780068208000,-800.0,0.00037373,120]
[423375635,1780068208000,-800.0,0.00037373,120]
[423375636,1780068208000,-800.0,0.00037373,120]
[423375637,1780068208000,-800.0,0.00037373,120]
[423375638,1780068208000,-800.0,0.00037373,120]
[423375639,1780068208000,-1424.4144458,0.00037373,120]
[423375651,1780068209000,-1644.98176118,0.000384,120]
[423375648,1780068209000,-308.95842582,0.000384,120]
[423375647,1780068209000,-329.83026429,0.000384,120]
[423375649,1780068209000,-591.70789747,0.000384,120]
[423375645,1780068209000,-170.10856061,0.000384,120]
[423375641,1780068209000,-2342.96928521,0.000375,30]
[423375644,1780068209000,-309.41557562,0.000384,120]
[423375643,1780068209000,-4884.2,0.00038125,30]
[423375642,1780068209000,-2342.96928521,0.000375,30]
[423375652,1780068209000,-1607.98655823,0.000384,120]
[423375640,1780068209000,-2342.96928523,0.000375,30]
[423375646,1780068209000,-493.36226927,0.000384,120]
[423375654,1780068209000,-1980.12370263,0.00038438,120]
[423375650,1780068209000,-465.39204499,0.000384,120]
[423375655,1780068209000,-1000.0,0.000385,120]
[423375668,1780068209000,-3038.662354,0.0003931,30]
[423375667,1780068209000,-1195.800201,0.0003931,30]
[423375665,1780068209000,-5632.06,0.00039302,120]
[423375666,1780068209000,-1195.800201,0.0003931,30]
[423375664,1780068209000,-283.45984174,0.00039026,120]
[423375662,1780068209000,-1000.0,0.000385,120]
[423375653,1780068209000,-1790.23767762,0.000384,120]
[423375661,1780068209000,-1000.0,0.000385,120]
[423375659,1780068209000,-1000.0,0.000385,120]
[423375660,1780068209000,-1000.0,0.000385,120]
[423375658,1780068209000,-1000.0,0.000385,120]
[423375657,1780068209000,-1000.0,0.000385,120]
[423375656,1780068209000,-1000.0,0.000385,120]
[423375663,1780068209000,-150.0,0.00039026,120]
[423375681,1780068210000,-292.991993,0.0003931,30]
[423375680,1780068210000,-292.991993,0.0003931,30]
[423375679,1780068210000,-151.0,0.0003931,30]
[423375677,1780068210000,-292.991993,0.0003931,30]
[423375678,1780068210000,-231.302752,0.0003931,30]
[423375676,1780068210000,-1195.800197,0.0003931,30]
[423375673,1780068210000,-151.0,0.0003931,30]
[423375675,1780068210000,-292.991993,0.0003931,30]
[423375672,1780068210000,-231.302752,0.0003931,30]
[423375671,1780068210000,-1195.800201,0.0003931,30]
[423375669,1780068210000,-3038.662352,0.0003931,30]
[423375682,1780068210000,-231.302752,0.0003931,30]
[423375674,1780068210000,-1195.800201,0.0003931,30]
[423375670,1780068210000,-1195.800201,0.0003931,30]
[423375684,1780068210000,-292.991993,0.0003931,30]
[423375685,1780068210000,-292.991993,0.0003931,30]
[423375683,1780068210000,-151.0,0.0003931,30]
[423375698,1780068210000,-319.539485,0.0003931,30]
[423375697,1780068210000,-172.005998,0.0003931,30]
[423375695,1780068210000,-172.005994,0.0003931,30]
[423375692,1780068210000,-172.005994,0.0003931,30]
[423375694,1780068210000,-319.539485,0.0003931,30]
[423375696,1780068210000,-209.194782,0.0003931,30]
[423375691,1780068210000,-319.539485,0.0003931,30]
[423375690,1780068210000,-209.194782,0.0003931,30]
[423375689,1780068210000,-172.005994,0.0003931,30]
[423375688,1780068210000,-292.991989,0.0003931,30]
[423375686,1780068210000,-231.302752,0.0003931,30]
[423375687,1780068210000,-292.991993,0.0003931,30]
[423375693,1780068210000,-209.194782,0.0003931,30]
[423375707,1780068211000,-267.891299,0.0003931,30]
[423375712,1780068211000,-516.247069,0.0003931,30]
[423375711,1780068211000,-1122.45088622,0.0003931,30]
[423375708,1780068211000,-1122.450887,0.0003931,30]
[423375709,1780068211000,-151.0,0.0003931,30]
[423375705,1780068211000,-1122.450887,0.0003931,30]
[423375699,1780068211000,-209.194782,0.0003931,30]
[423375704,1780068211000,-267.891299,0.0003931,30]
[423375702,1780068211000,-319.5394864,0.0003931,30]
[423375703,1780068211000,-151.0,0.0003931,30]
[423375701,1780068211000,-151.0,0.0003931,30]
[423375700,1780068211000,-1122.450887,0.0003931,30]
[423375710,1780068211000,-267.891299,0.0003931,30]
[423375714,1780068211000,-516.247069,0.0003931,30]
[423375706,1780068211000,-151.0,0.0003931,30]
[423375713,1780068211000,-267.891303,0.0003931,30]
[423375728,1780068211000,-2450.738824,0.0003931,30]
[423375727,1780068211000,-2450.73883,0.0003931,30]
[423375725,1780068211000,-2450.73883,0.0003931,30]
[423375726,1780068211000,-2450.73883,0.0003931,30]
[423375724,1780068211000,-204.336853,0.0003931,30]
[423375722,1780068211000,-204.336845,0.0003931,30]
[423375715,1780068211000,-516.247069,0.0003931,30]
[423375721,1780068211000,-2450.73883,0.0003931,30]
[423375719,1780068211000,-204.336845,0.0003931,30]
[423375720,1780068211000,-2450.73883,0.0003931,30]
[423375718,1780068211000,-2450.73883,0.0003931,30]
[423375716,1780068211000,-516.247065,0.0003931,30]
[423375717,1780068211000,-204.336845,0.0003931,30]
[423375723,1780068211000,-2450.73883,0.0003931,30]
[423375740,1780068212000,-151.0,0.0003931,30]
[423375739,1780068212000,-249.577085,0.0003931,30]
[423375738,1780068212000,-2968.874376,0.0003931,30]
[423375737,1780068212000,-151.0,0.0003931,30]
[423375736,1780068212000,-151.0,0.0003931,30]
[423375735,1780068212000,-249.577085,0.0003931,30]
[423375733,1780068212000,-151.0,0.0003931,30]
[423375731,1780068212000,-2968.874376,0.0003931,30]
[423375732,1780068212000,-2968.874376,0.0003931,30]
[423375730,1780068212000,-2968.874376,0.0003931,30]
[423375729,1780068212000,-2968.874376,0.0003931,30]
[423375742,1780068212000,-209.085737,0.0003931,30]
[423375734,1780068212000,-2968.874376,0.0003931,30]
[423375741,1780068212000,-209.085737,0.0003931,30]
[423375747,1780068212000,-674.088751,0.0003931,30]
[423375744,1780068212000,-249.577085,0.0003931,30]
[423375757,1780068212000,-674.088751,0.0003931,30]
[423375755,1780068212000,-151.0,0.0003931,30]
[423375756,1780068212000,-151.0,0.0003931,30]
[423375743,1780068212000,-151.0,0.0003931,30]
[423375754,1780068212000,-209.085737,0.0003931,30]
[423375753,1780068212000,-209.085737,0.0003931,30]
[423375752,1780068212000,-674.088751,0.0003931,30]
[423375749,1780068212000,-249.577085,0.0003931,30]
[423375750,1780068212000,-151.0,0.0003931,30]
[423375748,1780068212000,-151.0,0.0003931,30]
[423375746,1780068212000,-2968.874376,0.0003931,30]
[423375745,1780068212000,-151.0,0.0003931,30]
[423375751,1780068212000,-2968.874366,0.0003931,30]
[423375765,1780068213000,-151.0,0.0003931,30]
[423375758,1780068213000,-249.577085,0.0003931,30]
[423375759,1780068213000,-269.912521,0.0003931,30]
[423375761,1780068213000,-249.577085,0.0003931,30]
[423375763,1780068213000,-209.085737,0.0003931,30]
[423375762,1780068213000,-674.088751,0.0003931,30]
[423375764,1780068213000,-209.085737,0.0003931,30]
[423375766,1780068213000,-674.088751,0.0003931,30]
[423375760,1780068213000,-199.980653,0.0003931,30]
[423375767,1780068213000,-249.577085,0.0003931,30]
[423375769,1780068213000,-674.088751,0.0003931,30]
[423375771,1780068213000,-981.085587,0.0003931,30]
[423375770,1780068213000,-249.577077,0.0003931,30]
[423375772,1780068213000,-209.085737,0.0003931,30]
[423375774,1780068213000,-209.085738,0.0003931,30]
[423375773,1780068213000,-981.085587,0.0003931,30]
[423375776,1780068213000,-674.088751,0.0003931,30]
[423375775,1780068213000,-151.0,0.0003931,30]
[423375768,1780068213000,-151.0,0.0003931,30]
[423375790,1780068214000,-220.934392,0.0003931,30]
[423375789,1780068214000,-220.934392,0.0003931,30]
[423375785,1780068214000,-981.085587,0.0003931,30]
[423375787,1780068214000,-220.934392,0.0003931,30]
[423375786,1780068214000,-981.085587,0.0003931,30]
[423375784,1780068214000,-981.085587,0.0003931,30]
[423375780,1780068214000,-151.0,0.0003931,30]
[423375781,1780068214000,-981.085587,0.0003931,30]
[423375779,1780068214000,-674.088743,0.0003931,30]
[423375788,1780068214000,-220.934392,0.0003931,30]
[423375778,1780068214000,-151.0,0.0003931,30]
[423375777,1780068214000,-262.916011,0.0003931,30]
[423375782,1780068214000,-981.085587,0.0003931,30]
[423375791,1780068214000,-151.0,0.0003931,30]
[423375783,1780068214000,-981.085587,0.0003931,30]
[423375792,1780068214000,-151.369278,0.0003931,30]
[423375793,1780068214000,-220.934392,0.0003931,30]
[423375806,1780068214000,-249.0,0.0003931,30]
[423375804,1780068214000,-2658.899765,0.0003931,30]
[423375805,1780068214000,-249.0,0.0003931,30]
[423375803,1780068214000,-2658.899765,0.0003931,30]
[423375801,1780068214000,-249.0,0.0003931,30]
[423375802,1780068214000,-249.0,0.0003931,30]
[423375799,1780068214000,-249.0,0.0003931,30]
[423375797,1780068214000,-249.0,0.0003931,30]
[423375798,1780068214000,-249.0,0.0003931,30]
[423375796,1780068214000,-220.934399,0.0003931,30]
[423375794,1780068214000,-220.934392,0.0003931,30]
[423375795,1780068214000,-220.934392,0.0003931,30]
[423375800,1780068214000,-249.0,0.0003931,30]
[423375809,1780068215000,-2658.899765,0.0003931,30]
[423375807,1780068215000,-2658.899765,0.0003931,30]
[423375811,1780068215000,-2658.899765,0.0003931,30]
[423375808,1780068215000,-1178.230077,0.0003931,30]
[423375812,1780068215000,-1178.230077,0.0003931,30]
[423375814,1780068215000,-1178.230077,0.0003931,30]
[423375813,1780068215000,-2658.899765,0.0003931,30]
[423375810,1780068215000,-1178.230077,0.0003931,30]
[423375815,1780068218000,-151.0,0.00039335,30]
[423375816,1780068218000,-151.0,0.00039335,30]
[423375819,1780068218000,-151.0,0.00039343,30]
[423375818,1780068218000,-208.21706,0.00039335,30]
[423375817,1780068218000,-1979.943684,0.00039335,30]
[423375821,1780068218000,-1979.943684,0.00039343,30]
[423375823,1780068218000,-170.10856061,0.000395,120]
[423375822,1780068218000,-309.41557562,0.000395,120]
[423375825,1780068218000,-329.83026429,0.000395,120]